[Event "Titled Tuesday Blitz March 22 Early 2022"]
[White "Gabrielian, Artur"]
[Black "Lazavik, Denis"]
[WhiteFideId "4131002"]
[BlackFideId "13515110"]
[WhiteElo "2440"]
[BlackElo "2437"]
[Result "1-0"]
[Round "09"]
[TimeControl "180+1"]
[Date "2022.03.22"]
[WhiteClock "0:00:35"]
[BlackClock "0:00:08"]

1. e4 {[%clk 0:03:00]}  e5 {[%clk 0:02:58]} 2. Nf3 {[%clk 0:03:00]}  Nc6 {[%clk 0:02:59]} 3. Bc4 {[%clk 0:03:00]}  Bc5 {[%clk 0:02:59]} 4. d3 {[%clk 0:03:00]}  Nf6 {[%clk 0:02:59]} 5. Bg5 {[%clk 0:03:01]}  h6 {[%clk 0:02:58]} 6. Bh4 {[%clk 0:03:01]}  d6 {[%clk 0:02:58]} 7. c3 {[%clk 0:03:00]}  a6 {[%clk 0:02:57]} 8. Nbd2 {[%clk 0:02:57]}  Qe7 {[%clk 0:02:57]} 9. O-O {[%clk 0:02:50]}  Ba7 {[%clk 0:02:55]} 10. Kh1 {[%clk 0:02:46]}  g5 {[%clk 0:02:50]} 11. Bg3 {[%clk 0:02:46]}  Nh5 {[%clk 0:02:34]} 12. Bd5 {[%clk 0:02:35]}  Nf4 {[%clk 0:02:23]} 13. d4 {[%clk 0:01:56]}  Nd8 {[%clk 0:02:07]} 14. dxe5 {[%clk 0:01:36]}  dxe5 {[%clk 0:02:07]} 15. Bxf4 {[%clk 0:01:27]}  exf4 {[%clk 0:01:59]} 16. e5 {[%clk 0:01:24]}  c6 {[%clk 0:01:31]} 17. Bb3 {[%clk 0:01:23]}  Kf8 {[%clk 0:01:27]} 18. Ne4 {[%clk 0:01:22]}  Be6 {[%clk 0:01:23]} 19. Nf6 {[%clk 0:01:17]}  Bxb3 {[%clk 0:01:12]} 20. axb3 {[%clk 0:01:16]}  Ne6 {[%clk 0:01:06]} 21. Qc2 {[%clk 0:01:16]}  Rd8 {[%clk 0:00:35]} 22. Rad1 {[%clk 0:01:15]}  Bb6 {[%clk 0:00:29]} 23. Rxd8+ {[%clk 0:01:11]}  Bxd8 {[%clk 0:00:30]} 24. Rd1 {[%clk 0:01:11]}  Qc7 {[%clk 0:00:28]} 25. Rd7 {[%clk 0:01:05]}  Qc8 {[%clk 0:00:28]} 26. Qd3 {[%clk 0:00:58]}  Kg7 {[%clk 0:00:10]} 27. Nh5+ {[%clk 0:00:53]}  Kg8 {[%clk 0:00:10]} 28. Nf6+ {[%clk 0:00:49]}  Kg7 {[%clk 0:00:10]} 29. Qf5 {[%clk 0:00:35]}  Rf8 {[%clk 0:00:08]} 30. Qxe6 {[%clk 0:00:35]} 1-0


[Site "https://www.chess.com"]

[Event "Titled Tuesday Blitz March 22 Early 2022"]
[White "Gaehwiler, Gabriel"]
[Black "Grischuk, Alexander"]
[WhiteFideId "1314530"]
[BlackFideId "4126025"]
[WhiteElo "2383"]
[BlackElo "2762"]
[Result "0-1"]
[Round "09"]
[TimeControl "180+1"]
[Date "2022.03.22"]
[WhiteClock "0:00:04"]
[BlackClock "0:00:03"]

1. d4 {[%clk 0:03:00]}  e6 {[%clk 0:03:00]} 2. Nf3 {[%clk 0:03:00]}  c5 {[%clk 0:03:00]} 3. e4 {[%clk 0:02:59]}  cxd4 {[%clk 0:03:00]} 4. Nxd4 {[%clk 0:03:00]}  Nc6 {[%clk 0:02:59]} 5. Nc3 {[%clk 0:02:59]}  Qc7 {[%clk 0:02:56]} 6. Be3 {[%clk 0:02:59]}  a6 {[%clk 0:02:56]} 7. Qf3 {[%clk 0:02:58]}  Ne5 {[%clk 0:02:44]} 8. Qg3 {[%clk 0:02:56]}  Bd6 {[%clk 0:02:44]} 9. f4 {[%clk 0:02:30]}  Ng6 {[%clk 0:02:44]} 10. e5 {[%clk 0:02:28]}  Bb4 {[%clk 0:02:44]} 11. Bd2 {[%clk 0:02:24]}  d6 {[%clk 0:02:18]} 12. a3 {[%clk 0:01:44]}  Bc5 {[%clk 0:01:45]} 13. Nb3 {[%clk 0:01:40]}  dxe5 {[%clk 0:01:41]} 14. fxe5 {[%clk 0:01:36]}  Be7 {[%clk 0:01:37]} 15. O-O-O {[%clk 0:01:27]}  Qxe5 {[%clk 0:01:37]} 16. Qf2 {[%clk 0:01:18]}  Nf6 {[%clk 0:01:37]} 17. Bd3 {[%clk 0:01:14]}  O-O {[%clk 0:01:36]} 18. h4 {[%clk 0:01:12]}  h5 {[%clk 0:01:26]} 19. Rde1 {[%clk 0:01:05]}  Ng4 {[%clk 0:01:21]} 20. Qf3 {[%clk 0:00:55]}  Qf6 {[%clk 0:01:19]} 21. Qe2 {[%clk 0:00:40]}  Qf2 {[%clk 0:01:11]} 22. Bxg6 {[%clk 0:00:33]}  Qxe2 {[%clk 0:00:59]} 23. Bxf7+ {[%clk 0:00:33]}  Rxf7 {[%clk 0:00:59]} 24. Rxe2 {[%clk 0:00:34]}  e5 {[%clk 0:01:00]} 25. Nd5 {[%clk 0:00:30]}  Bd8 {[%clk 0:00:49]} 26. Ne3 {[%clk 0:00:27]}  Bf6 {[%clk 0:00:46]} 27. Bc3 {[%clk 0:00:25]}  b6 {[%clk 0:00:39]} 28. Nd2 {[%clk 0:00:17]}  b5 {[%clk 0:00:32]} 29. Nxg4 {[%clk 0:00:16]}  Bxg4 {[%clk 0:00:32]} 30. Re3 {[%clk 0:00:17]}  Re8 {[%clk 0:00:24]} 31. Ne4 {[%clk 0:00:17]}  Rd7 {[%clk 0:00:23]} 32. b3 {[%clk 0:00:12]}  Bd8 {[%clk 0:00:23]} 33. Kb2 {[%clk 0:00:11]}  Bb6 {[%clk 0:00:23]} 34. Ree1 {[%clk 0:00:11]}  Bf5 {[%clk 0:00:19]} 35. Ng3 {[%clk 0:00:11]}  Bg6 {[%clk 0:00:18]} 36. Ne4 {[%clk 0:00:09]}  Rf8 {[%clk 0:00:13]} 37. Bxe5 {[%clk 0:00:05]}  Re8 {[%clk 0:00:06]} 38. Nc3 {[%clk 0:00:05]}  Rd2 {[%clk 0:00:05]} 39. Rc1 {[%clk 0:00:01]}  Rxe5 {[%clk 0:00:05]} 40. Rhf1 {[%clk 0:00:01]}  Bd4 {[%clk 0:00:05]} 41. b4 {[%clk 0:00:02]}  Rxg2 {[%clk 0:00:05]} 42. Rf3 {[%clk 0:00:02]}  Re3 {[%clk 0:00:03]} 43. a4 {[%clk 0:00:02]}  Rxf3 {[%clk 0:00:03]} 44. axb5 {[%clk 0:00:03]}  Bxc3+ {[%clk 0:00:03]} 45. Kb3 {[%clk 0:00:04]}  axb5 {[%clk 0:00:03]} 46. Re1 {[%clk 0:00:04]}  Bxe1+ {[%clk 0:00:03]} 0-1


[Site "https://www.chess.com"]

[Event "Titled Tuesday Blitz March 22 Early 2022"]
[White "Hoffmann, Asa"]
[Black "Brodowski, Piotr"]
[WhiteFideId "2001470"]
[BlackFideId "1124480"]
[WhiteElo "2117"]
[BlackElo "2422"]
[Result "1-0"]
[Round "09"]
[TimeControl "180+1"]
[Date "2022.03.22"]
[WhiteClock "0:01:18"]
[BlackClock "0:01:49"]

1. d4 {[%clk 0:02:58]}  c5 {[%clk 0:02:50]} 2. dxc5 {[%clk 0:02:57]}  e6 {[%clk 0:02:49]} 3. Nc3 {[%clk 0:02:56]}  Bxc5 {[%clk 0:02:49]} 4. Ne4 {[%clk 0:02:55]}  d5 {[%clk 0:02:45]} 5. Nxc5 {[%clk 0:02:55]}  Qa5+ {[%clk 0:02:45]} 6. c3 {[%clk 0:02:54]}  Qxc5 {[%clk 0:02:46]} 7. e4 {[%clk 0:02:54]}  Nf6 {[%clk 0:02:44]} 8. Be3 {[%clk 0:02:52]}  Qc6 {[%clk 0:02:42]} 9. e5 {[%clk 0:02:51]}  Nfd7 {[%clk 0:02:42]} 10. f4 {[%clk 0:02:49]}  b6 {[%clk 0:02:43]} 11. Qg4 {[%clk 0:02:47]}  g6 {[%clk 0:02:42]} 12. Nf3 {[%clk 0:02:46]}  Ba6 {[%clk 0:02:42]} 13. Bxa6 {[%clk 0:02:41]}  Nxa6 {[%clk 0:02:42]} 14. O-O {[%clk 0:02:41]}  O-O {[%clk 0:02:36]} 15. Qh4 {[%clk 0:02:35]}  f6 {[%clk 0:02:33]} 16. Bd4 {[%clk 0:02:32]}  fxe5 {[%clk 0:02:24]} 17. Ng5 {[%clk 0:02:24]}  h5 {[%clk 0:02:20]} 18. fxe5 {[%clk 0:02:19]}  Nac5 {[%clk 0:02:20]} 19. g4 {[%clk 0:02:13]}  Ne4 {[%clk 0:01:54]} 20. gxh5 {[%clk 0:02:00]}  Rf5 {[%clk 0:01:53]} 21. Nxe4 {[%clk 0:01:51]}  dxe4 {[%clk 0:01:52]} 22. hxg6 {[%clk 0:01:44]}  Nf8 {[%clk 0:01:52]} 23. Rxf5 {[%clk 0:01:31]}  exf5 {[%clk 0:01:52]} 24. e6 {[%clk 0:01:26]}  Nxg6 {[%clk 0:01:49]} 25. Qf6 {[%clk 0:01:18]} 1-0


[Site "https://www.chess.com"]

[Event "Titled Tuesday Blitz March 22 Early 2022"]
[White "Horcajuelo Rocamora, Martin"]
[Black "Valle Maytin, Luis Enrique"]
[WhiteFideId "24573027"]
[BlackFideId "3503666"]
[WhiteElo "1706"]
[BlackElo "2228"]
[Result "1-0"]
[Round "09"]
[TimeControl "180+1"]
[Date "2022.03.22"]
[WhiteClock "0:01:03"]
[BlackClock "0:01:24"]

1. e4 {[%clk 0:03:00]}  c6 {[%clk 0:02:59]} 2. d4 {[%clk 0:02:53]}  d5 {[%clk 0:02:59]} 3. exd5 {[%clk 0:02:53]}  cxd5 {[%clk 0:03:00]} 4. Bd3 {[%clk 0:02:53]}  Nc6 {[%clk 0:02:59]} 5. c3 {[%clk 0:02:51]}  Qc7 {[%clk 0:02:59]} 6. Nf3 {[%clk 0:02:49]}  Nf6 {[%clk 0:02:59]} 7. O-O {[%clk 0:02:49]}  e6 {[%clk 0:03:00]} 8. b4 {[%clk 0:02:48]}  a6 {[%clk 0:02:59]} 9. Nbd2 {[%clk 0:02:48]}  Bd6 {[%clk 0:02:59]} 10. Nb3 {[%clk 0:02:48]}  O-O {[%clk 0:02:59]} 11. h3 {[%clk 0:02:47]}  b6 {[%clk 0:02:55]} 12. a4 {[%clk 0:02:47]}  a5 {[%clk 0:02:55]} 13. b5 {[%clk 0:02:46]}  Ne7 {[%clk 0:02:53]} 14. Qc2 {[%clk 0:02:45]}  Ng6 {[%clk 0:02:53]} 15. Bg5 {[%clk 0:02:44]}  Nd7 {[%clk 0:02:47]} 16. h4 {[%clk 0:02:43]}  Re8 {[%clk 0:02:43]} 17. h5 {[%clk 0:02:36]}  Ngf8 {[%clk 0:02:42]} 18. h6 {[%clk 0:02:37]}  g6 {[%clk 0:02:41]} 19. Rac1 {[%clk 0:02:35]}  e5 {[%clk 0:02:41]} 20. dxe5 {[%clk 0:02:24]}  Nxe5 {[%clk 0:02:40]} 21. Nxe5 {[%clk 0:02:23]}  Bxe5 {[%clk 0:02:40]} 22. f4 {[%clk 0:02:23]}  Bd6 {[%clk 0:02:38]} 23. f5 {[%clk 0:02:22]}  Bb7 {[%clk 0:02:27]} 24. fxg6 {[%clk 0:02:20]}  hxg6 {[%clk 0:02:22]} 25. Nd4 {[%clk 0:02:17]}  Be5 {[%clk 0:02:17]} 26. Bf6 {[%clk 0:02:12]}  Bxf6 {[%clk 0:02:15]} 27. Rxf6 {[%clk 0:02:12]}  Nd7 {[%clk 0:01:56]} 28. h7+ {[%clk 0:02:04]}  Kg7 {[%clk 0:01:50]} 29. Rxf7+ {[%clk 0:01:41]}  Kxf7 {[%clk 0:01:49]} 30. Bxg6+ {[%clk 0:01:41]}  Kg7 {[%clk 0:01:49]} 31. Bxe8 {[%clk 0:01:39]}  Rxe8 {[%clk 0:01:48]} 32. Qf5 {[%clk 0:01:29]}  Qd6 {[%clk 0:01:40]} 33. Rf1 {[%clk 0:01:19]}  Rf8 {[%clk 0:01:26]} 34. Ne6+ {[%clk 0:01:03]}  Qxe6 {[%clk 0:01:22]} 35. Qxe6 {[%clk 0:01:03]}  Rxf1+ {[%clk 0:01:23]} 36. Kxf1 {[%clk 0:01:03]}  Nf6 {[%clk 0:01:24]} 37. Qe7+ {[%clk 0:01:03]} 1-0


[Site "https://www.chess.com"]

[Event "Titled Tuesday Blitz March 22 Early 2022"]
[White "Jary, Sergey"]
[Black "Jeet, Jain"]
[WhiteFideId "14110350"]
[BlackFideId "5073022"]
[WhiteElo "2260"]
[BlackElo "2085"]
[Result "0-1"]
[Round "09"]
[TimeControl "180+1"]
[Date "2022.03.22"]
[WhiteClock "0:00:21"]
[BlackClock "0:00:10"]

1. e4 {[%clk 0:02:59]}  c6 {[%clk 0:03:00]} 2. d4 {[%clk 0:02:59]}  d5 {[%clk 0:03:00]} 3. Nd2 {[%clk 0:02:59]}  g6 {[%clk 0:02:57]} 4. e5 {[%clk 0:02:58]}  Bg7 {[%clk 0:02:56]} 5. c3 {[%clk 0:02:58]}  h5 {[%clk 0:02:56]} 6. Bd3 {[%clk 0:02:56]}  Nh6 {[%clk 0:02:55]} 7. Ne2 {[%clk 0:02:56]}  Bf5 {[%clk 0:02:55]} 8. Nf3 {[%clk 0:02:27]}  e6 {[%clk 0:02:43]} 9. Bg5 {[%clk 0:02:19]}  Qb6 {[%clk 0:02:40]} 10. O-O {[%clk 0:02:17]}  Nd7 {[%clk 0:02:36]} 11. h3 {[%clk 0:02:10]}  c5 {[%clk 0:02:28]} 12. Ng3 {[%clk 0:02:03]}  c4 {[%clk 0:02:12]} 13. Be2 {[%clk 0:01:58]}  Qxb2 {[%clk 0:02:07]} 14. Nxf5 {[%clk 0:01:57]}  Nxf5 {[%clk 0:02:07]} 15. Rb1 {[%clk 0:01:54]}  Qxa2 {[%clk 0:01:58]} 16. Rxb7 {[%clk 0:01:54]}  Rb8 {[%clk 0:01:57]} 17. Rxb8+ {[%clk 0:01:49]}  Nxb8 {[%clk 0:01:57]} 18. Qb1 {[%clk 0:01:49]}  Qxb1 {[%clk 0:01:55]} 19. Rxb1 {[%clk 0:01:50]}  Nc6 {[%clk 0:01:28]} 20. Kh2 {[%clk 0:01:39]}  O-O {[%clk 0:01:11]} 21. g4 {[%clk 0:01:28]}  hxg4 {[%clk 0:01:09]} 22. hxg4 {[%clk 0:01:29]}  Nfe7 {[%clk 0:01:04]} 23. Rb7 {[%clk 0:01:25]}  Nc8 {[%clk 0:00:54]} 24. Rc7 {[%clk 0:01:22]}  Na5 {[%clk 0:00:49]} 25. Bd1 {[%clk 0:01:22]}  Nb3 {[%clk 0:00:35]} 26. Nd2 {[%clk 0:01:18]}  Nxd2 {[%clk 0:00:29]} 27. Bxd2 {[%clk 0:01:17]}  f6 {[%clk 0:00:29]} 28. f4 {[%clk 0:01:12]}  fxe5 {[%clk 0:00:30]} 29. dxe5 {[%clk 0:01:09]}  Bxe5 {[%clk 0:00:27]} 30. fxe5 {[%clk 0:01:03]}  Rf2+ {[%clk 0:00:27]} 31. Kg3 {[%clk 0:01:03]}  Rxd2 {[%clk 0:00:28]} 32. Rxc8+ {[%clk 0:01:04]}  Kg7 {[%clk 0:00:29]} 33. Rc7+ {[%clk 0:00:56]}  Kh6 {[%clk 0:00:25]} 34. Bf3 {[%clk 0:00:56]}  a5 {[%clk 0:00:20]} 35. Re7 {[%clk 0:00:54]}  Rd3 {[%clk 0:00:18]} 36. Rxe6 {[%clk 0:00:52]}  Rxc3 {[%clk 0:00:18]} 37. Rd6 {[%clk 0:00:49]}  a4 {[%clk 0:00:16]} 38. Rxd5 {[%clk 0:00:47]}  a3 {[%clk 0:00:16]} 39. Ra5 {[%clk 0:00:44]}  Re3 {[%clk 0:00:16]} 40. Kf4 {[%clk 0:00:42]}  Rb3 {[%clk 0:00:15]} 41. g5+ {[%clk 0:00:38]}  Kg7 {[%clk 0:00:15]} 42. Ra7+ {[%clk 0:00:38]}  Kf8 {[%clk 0:00:16]} 43. e6 {[%clk 0:00:36]}  Rb6 {[%clk 0:00:09]} 44. Ke5 {[%clk 0:00:36]}  c3 {[%clk 0:00:08]} 45. Kf6 {[%clk 0:00:35]}  Rb8 {[%clk 0:00:06]} 46. Rxa3 {[%clk 0:00:33]}  Rc8 {[%clk 0:00:07]} 47. e7+ {[%clk 0:00:31]}  Ke8 {[%clk 0:00:06]} 48. Bc6+ {[%clk 0:00:29]}  Rxc6+ {[%clk 0:00:06]} 49. Ke5 {[%clk 0:00:27]}  c2 {[%clk 0:00:06]} 50. Ra8+ {[%clk 0:00:23]}  Kxe7 {[%clk 0:00:07]} 51. Ra7+ {[%clk 0:00:23]}  Kd8 {[%clk 0:00:07]} 52. Ra8+ {[%clk 0:00:22]}  Rc8 {[%clk 0:00:07]} 53. Ra1 {[%clk 0:00:21]}  c1=Q {[%clk 0:00:08]} 54. Rxc1 {[%clk 0:00:21]}  Rxc1 {[%clk 0:00:08]} 55. Kf6 {[%clk 0:00:21]}  Rc6+ {[%clk 0:00:09]} 56. Kf7 {[%clk 0:00:21]}  Kd7 {[%clk 0:00:10]} 0-1


[Site "https://www.chess.com"]

[Event "Titled Tuesday Blitz March 22 Early 2022"]
[White "Jumabayev, Rinat"]
[Black "Perera Alfonso, Rene Humberto"]
[WhiteFideId "13702661"]
[BlackFideId "3514722"]
[WhiteElo "2561"]
[BlackElo "2313"]
[Result "1-0"]
[Round "09"]
[TimeControl "180+1"]
[Date "2022.03.22"]
[WhiteClock "0:01:44"]
[BlackClock "0:01:46"]

1. e4 {[%clk 0:03:00]}  c5 {[%clk 0:02:59]} 2. Nf3 {[%clk 0:03:01]}  d6 {[%clk 0:02:59]} 3. Bc4 {[%clk 0:03:00]}  Nf6 {[%clk 0:02:56]} 4. d3 {[%clk 0:03:00]}  Nc6 {[%clk 0:02:55]} 5. c3 {[%clk 0:03:00]}  g6 {[%clk 0:02:55]} 6. h3 {[%clk 0:02:58]}  Bg7 {[%clk 0:02:55]} 7. Bb3 {[%clk 0:02:58]}  O-O {[%clk 0:02:55]} 8. O-O {[%clk 0:02:58]}  b5 {[%clk 0:02:54]} 9. Re1 {[%clk 0:02:57]}  b4 {[%clk 0:02:53]} 10. d4 {[%clk 0:02:52]}  bxc3 {[%clk 0:02:51]} 11. bxc3 {[%clk 0:02:53]}  cxd4 {[%clk 0:02:50]} 12. cxd4 {[%clk 0:02:53]}  a5 {[%clk 0:02:47]} 13. Nc3 {[%clk 0:02:50]}  Bb7 {[%clk 0:02:40]} 14. Be3 {[%clk 0:02:22]}  Rc8 {[%clk 0:02:38]} 15. Rc1 {[%clk 0:02:20]}  e6 {[%clk 0:02:35]} 16. d5 {[%clk 0:02:14]}  exd5 {[%clk 0:02:33]} 17. Nxd5 {[%clk 0:02:15]}  Nb4 {[%clk 0:02:23]} 18. Rxc8 {[%clk 0:02:04]}  Bxc8 {[%clk 0:02:23]} 19. Bb6 {[%clk 0:02:03]}  Qd7 {[%clk 0:01:52]} 20. Nxf6+ {[%clk 0:02:03]}  Bxf6 {[%clk 0:01:53]} 21. Bxa5 {[%clk 0:02:03]}  Nc6 {[%clk 0:01:53]} 22. Bb6 {[%clk 0:02:03]}  Bb7 {[%clk 0:01:48]} 23. a4 {[%clk 0:01:52]}  Rb8 {[%clk 0:01:47]} 24. a5 {[%clk 0:01:49]}  Ba6 {[%clk 0:01:46]} 25. e5 {[%clk 0:01:44]} 1-0


[Site "https://www.chess.com"]

[Event "Titled Tuesday Blitz March 22 Early 2022"]
[White "Kanyamarala, Trisha"]
[Black "Goriatchkin, Jouri"]
[WhiteFideId "45004722"]
[BlackFideId "4120183"]
[WhiteElo "2047"]
[BlackElo "1614"]
[Result "0-1"]
[Round "09"]
[TimeControl "180+1"]
[Date "2022.03.22"]
[WhiteClock "0:00:01"]
[BlackClock "0:00:11"]

1. c4 {[%clk 0:02:59]}  c6 {[%clk 0:03:00]} 2. Nc3 {[%clk 0:02:58]}  d5 {[%clk 0:02:59]} 3. d4 {[%clk 0:02:58]}  Nf6 {[%clk 0:02:58]} 4. Bf4 {[%clk 0:02:56]}  e6 {[%clk 0:02:52]} 5. e3 {[%clk 0:02:55]}  Bd6 {[%clk 0:02:51]} 6. Bg5 {[%clk 0:02:53]}  O-O {[%clk 0:02:50]} 7. Nf3 {[%clk 0:02:53]}  Nbd7 {[%clk 0:02:49]} 8. Qc2 {[%clk 0:02:50]}  h6 {[%clk 0:02:47]} 9. Bh4 {[%clk 0:02:50]}  b6 {[%clk 0:02:45]} 10. Bd3 {[%clk 0:02:50]}  Bb7 {[%clk 0:02:43]} 11. O-O {[%clk 0:02:50]}  Rc8 {[%clk 0:02:38]} 12. Rad1 {[%clk 0:02:45]}  Be7 {[%clk 0:02:34]} 13. e4 {[%clk 0:02:40]}  dxe4 {[%clk 0:02:32]} 14. Nxe4 {[%clk 0:02:40]}  Nxe4 {[%clk 0:02:28]} 15. Bxe7 {[%clk 0:02:40]}  Qxe7 {[%clk 0:02:28]} 16. Bxe4 {[%clk 0:02:41]}  Nf6 {[%clk 0:02:29]} 17. Rfe1 {[%clk 0:02:35]}  Nxe4 {[%clk 0:02:22]} 18. Qxe4 {[%clk 0:02:34]}  c5 {[%clk 0:02:22]} 19. d5 {[%clk 0:02:34]}  Qf6 {[%clk 0:02:02]} 20. Ne5 {[%clk 0:02:18]}  exd5 {[%clk 0:01:57]} 21. cxd5 {[%clk 0:02:18]}  Rfe8 {[%clk 0:01:53]} 22. Ng4 {[%clk 0:02:04]}  Qd8 {[%clk 0:01:27]} 23. Qxe8+ {[%clk 0:01:17]}  Qxe8 {[%clk 0:01:27]} 24. Rxe8+ {[%clk 0:01:17]}  Rxe8 {[%clk 0:01:28]} 25. Ne3 {[%clk 0:01:13]}  Rd8 {[%clk 0:01:17]} 26. Kf1 {[%clk 0:01:12]}  Kf8 {[%clk 0:01:18]} 27. Ke2 {[%clk 0:01:12]}  Ke7 {[%clk 0:01:17]} 28. f4 {[%clk 0:01:01]}  g6 {[%clk 0:01:12]} 29. g4 {[%clk 0:00:59]}  a6 {[%clk 0:01:03]} 30. Kf3 {[%clk 0:00:51]}  b5 {[%clk 0:00:56]} 31. Ke4 {[%clk 0:00:50]}  Kd6 {[%clk 0:00:55]} 32. b3 {[%clk 0:00:47]}  Re8+ {[%clk 0:00:54]} 33. Kf3 {[%clk 0:00:47]}  Rc8 {[%clk 0:00:45]} 34. Ke4 {[%clk 0:00:39]}  Re8+ {[%clk 0:00:40]} 35. Kf3 {[%clk 0:00:39]}  Rc8 {[%clk 0:00:34]} 36. f5 {[%clk 0:00:17]}  g5 {[%clk 0:00:30]} 37. Ke4 {[%clk 0:00:16]}  Re8+ {[%clk 0:00:30]} 38. Kf3 {[%clk 0:00:15]}  f6 {[%clk 0:00:30]} 39. Ke2 {[%clk 0:00:12]}  Rd8 {[%clk 0:00:30]} 40. h3 {[%clk 0:00:10]}  Ke5 {[%clk 0:00:29]} 41. Rc1 {[%clk 0:00:07]}  Kd6 {[%clk 0:00:26]} 42. Kd3 {[%clk 0:00:07]}  Bxd5 {[%clk 0:00:21]} 43. Nxd5 {[%clk 0:00:05]}  Kxd5 {[%clk 0:00:21]} 44. Ke3 {[%clk 0:00:05]}  Re8+ {[%clk 0:00:22]} 45. Kd3 {[%clk 0:00:03]}  Kc6 {[%clk 0:00:18]} 46. a4 {[%clk 0:00:02]}  bxa4 {[%clk 0:00:17]} 47. bxa4 {[%clk 0:00:03]}  Re5 {[%clk 0:00:17]} 48. Kc4 {[%clk 0:00:03]}  Re3 {[%clk 0:00:16]} 49. Rb1 {[%clk 0:00:02]}  Rxh3 {[%clk 0:00:16]} 50. Re1 {[%clk 0:00:02]}  Rg3 {[%clk 0:00:15]} 51. Re6+ {[%clk 0:00:02]}  Kc7 {[%clk 0:00:15]} 52. Rxf6 {[%clk 0:00:02]}  Rxg4+ {[%clk 0:00:16]} 53. Kxc5 {[%clk 0:00:03]}  Rxa4 {[%clk 0:00:16]} 54. Rxh6 {[%clk 0:00:03]}  Rf4 {[%clk 0:00:15]} 55. f6 {[%clk 0:00:03]}  g4 {[%clk 0:00:14]} 56. Rh7+ {[%clk 0:00:02]}  Kd8 {[%clk 0:00:14]} 57. Kd5 {[%clk 0:00:01]}  Rxf6 {[%clk 0:00:14]} 58. Rg7 {[%clk 0:00:02]}  Rf4 {[%clk 0:00:14]} 59. Ke5 {[%clk 0:00:02]}  Ra4 {[%clk 0:00:14]} 60. Kd6 {[%clk 0:00:02]}  Ke8 {[%clk 0:00:14]} 61. Ke6 {[%clk 0:00:02]}  Kf8 {[%clk 0:00:15]} 62. Rg6 {[%clk 0:00:02]}  Re4+ {[%clk 0:00:14]} 63. Kf6 {[%clk 0:00:02]}  Rf4+ {[%clk 0:00:14]} 64. Ke6 {[%clk 0:00:02]}  a5 {[%clk 0:00:12]} 65. Rh6 {[%clk 0:00:01]}  Kg7 {[%clk 0:00:12]} 66. Rh2 {[%clk 0:00:01]}  a4 {[%clk 0:00:12]} 67. Ra2 {[%clk 0:00:01]}  g3 {[%clk 0:00:12]} 68. Ke5 {[%clk 0:00:01]}  Rg4 {[%clk 0:00:11]} 0-1


[Site "https://www.chess.com"]

[Event "Titled Tuesday Blitz March 22 Early 2022"]
[White "Khamdamova, Afruza"]
[Black "Ianov, Viktor"]
[WhiteFideId "14210444"]
[BlackFideId "14102730"]
[WhiteElo "1660"]
[BlackElo "2161"]
[Result "0-1"]
[Round "09"]
[TimeControl "180+1"]
[Date "2022.03.22"]
[WhiteClock "0:00:16"]
[BlackClock "0:00:51"]

1. e4 {[%clk 0:03:00]}  d6 {[%clk 0:02:59]} 2. d4 {[%clk 0:03:00]}  Nf6 {[%clk 0:02:59]} 3. Nc3 {[%clk 0:03:00]}  c6 {[%clk 0:03:00]} 4. Be3 {[%clk 0:02:56]}  Nbd7 {[%clk 0:02:58]} 5. f3 {[%clk 0:02:54]}  b5 {[%clk 0:02:56]} 6. Qd2 {[%clk 0:02:51]}  g6 {[%clk 0:02:54]} 7. g4 {[%clk 0:02:50]}  Nb6 {[%clk 0:02:52]} 8. h4 {[%clk 0:02:49]}  h5 {[%clk 0:02:52]} 9. g5 {[%clk 0:02:47]}  Nfd7 {[%clk 0:02:52]} 10. O-O-O {[%clk 0:02:39]}  b4 {[%clk 0:02:52]} 11. Nce2 {[%clk 0:02:32]}  Nc4 {[%clk 0:02:50]} 12. Qd3 {[%clk 0:02:32]}  Nxe3 {[%clk 0:02:46]} 13. Qxe3 {[%clk 0:02:32]}  Qa5 {[%clk 0:02:42]} 14. Kb1 {[%clk 0:02:29]}  Nb6 {[%clk 0:02:41]} 15. Nc1 {[%clk 0:02:29]}  Ba6 {[%clk 0:02:39]} 16. f4 {[%clk 0:02:19]}  Bg7 {[%clk 0:02:30]} 17. f5 {[%clk 0:02:16]}  O-O {[%clk 0:02:20]} 18. Nh3 {[%clk 0:02:10]}  Nc4 {[%clk 0:02:16]} 19. Bxc4 {[%clk 0:02:09]}  Bxc4 {[%clk 0:02:16]} 20. Nf4 {[%clk 0:01:55]}  gxf5 {[%clk 0:02:13]} 21. Nxh5 {[%clk 0:01:54]}  fxe4 {[%clk 0:02:10]} 22. Nxg7 {[%clk 0:01:53]}  Kxg7 {[%clk 0:02:09]} 23. h5 {[%clk 0:01:53]}  Bd5 {[%clk 0:02:02]} 24. h6+ {[%clk 0:01:51]}  Kh7 {[%clk 0:01:59]} 25. Rdg1 {[%clk 0:01:39]}  Rg8 {[%clk 0:01:59]} 26. Rh4 {[%clk 0:01:22]}  Rg6 {[%clk 0:01:52]} 27. Rf4 {[%clk 0:01:08]}  Rag8 {[%clk 0:01:48]} 28. Rff1 {[%clk 0:01:08]}  Rxg5 {[%clk 0:01:41]} 29. Rxg5 {[%clk 0:01:01]}  Rxg5 {[%clk 0:01:41]} 30. b3 {[%clk 0:00:57]}  f6 {[%clk 0:01:34]} 31. Ne2 {[%clk 0:00:53]}  Qb5 {[%clk 0:01:27]} 32. Rf2 {[%clk 0:00:47]}  a5 {[%clk 0:01:22]} 33. c4 {[%clk 0:00:44]}  bxc3 {[%clk 0:01:20]} 34. Nxc3 {[%clk 0:00:43]}  Qd3+ {[%clk 0:01:20]} 35. Qxd3 {[%clk 0:00:43]}  exd3 {[%clk 0:01:20]} 36. Rd2 {[%clk 0:00:40]}  Be6 {[%clk 0:01:16]} 37. Kb2 {[%clk 0:00:37]}  Bf5 {[%clk 0:01:16]} 38. Ka3 {[%clk 0:00:35]}  Kxh6 {[%clk 0:01:14]} 39. Ka4 {[%clk 0:00:35]}  Bg6 {[%clk 0:01:14]} 40. a3 {[%clk 0:00:28]}  e5 {[%clk 0:01:10]} 41. dxe5 {[%clk 0:00:27]}  Rxe5 {[%clk 0:01:10]} 42. b4 {[%clk 0:00:26]}  axb4 {[%clk 0:01:10]} 43. Kxb4 {[%clk 0:00:25]}  Rh5 {[%clk 0:01:03]} 44. a4 {[%clk 0:00:24]}  Rh4+ {[%clk 0:01:03]} 45. Kb3 {[%clk 0:00:23]}  Bf7+ {[%clk 0:01:01]} 46. Kb2 {[%clk 0:00:21]}  Rb4+ {[%clk 0:00:58]} 47. Kc1 {[%clk 0:00:21]}  Bc4 {[%clk 0:00:57]} 48. Rh2+ {[%clk 0:00:19]}  Kg6 {[%clk 0:00:56]} 49. Rg2+ {[%clk 0:00:18]}  Kf5 {[%clk 0:00:53]} 50. Rg8 {[%clk 0:00:16]}  Bxg8 {[%clk 0:00:51]} 0-1


[Site "https://www.chess.com"]